fUSD/lending_fUSD_20250515
["ID","MTS","AMOUNT","RATE_DAILY","PERIOD"]
[361124411,1747288082124,162.02,9.875e-05,2]
[361124412,1747288126967,184.56,9.9e-05,2]
[361124413,1747288134506,8275.62,9.9e-05,2]
[361124414,1747288199419,-432.79633385,9.924e-05,2]
[361124415,1747288206607,-243.39844704,9.923e-05,2]
[361124416,1747288209976,-56.60155296,9.923e-05,2]
[361124417,1747288209999,-209.811135,9.924e-05,2]
[361124420,1747288213570,-223.25108954,9.924e-05,2]
[361124421,1747288216858,-209.3076481,9.924e-05,2]
[361124422,1747288222184,-333.85787659,9.924e-05,2]
[361124423,1747288224141,-202.48450972,9.924e-05,2]
[361124424,1747288229992,-177.7386183,9.924e-05,2]
[361124428,1747288232377,-478.31588386,9.924e-05,2]
[361124429,1747288232389,-4104.4612,9.924e-05,2]
[361124430,1747288232401,-10252.1476,9.924e-05,2]
[361124431,1747288232420,-2155.68293364,9.924e-05,2]
[361124432,1747288232502,-256.80028328,9.924e-05,2]
[361124433,1747288232513,-757.55051937,9.924e-05,2]
[361124434,1747288232562,-1090.42243828,9.924e-05,2]
[361124435,1747288232622,-3015.37193047,9.924e-05,2]
[361124436,1747288232632,-224.60651342,0.0001,2]
[361124437,1747288232712,-225.39348658,0.0001,2]
[361124438,1747288232723,-151.0,0.0001,2]
[361124439,1747288232732,-411.91078776,0.0001,2]
[361124440,1747288232742,-187.58670763,0.00010005,2]
[361124441,1747288232753,-406.67770329,0.00010005,2]
[361124442,1747288232763,-3742.55131474,0.00010006,2]
[361124508,1747288233710,394.231507,9.874e-05,2]
[361124961,1747288238590,-381.48,0.00010006,2]
[361124968,1747288238656,-1089.91868526,0.00010006,2]
[361124971,1747288238666,-151.0,0.00010006,2]
[361124973,1747288238676,-308.93309082,0.00010006,2]
[361124975,1747288238686,-678.23,0.00010105,2]
[361124977,1747288238696,-152.14,0.00010446,2]
[361124979,1747288238706,-152.14,0.00010452,2]
[361124981,1747288238715,-152.14,0.00010459,2]
[361124983,1747288238725,-152.14,0.00010465,2]
[361124985,1747288238734,-152.14,0.00010472,2]
[361124987,1747288238745,-478.54,0.00010472,2]
[361124989,1747288238754,-152.14,0.00010478,2]
[361124991,1747288238764,-152.14,0.00010485,2]
[361124993,1747288238773,-152.14,0.00010491,2]
[361124995,1747288238783,-152.14,0.00010498,2]
[361124997,1747288238792,-251.37,0.00010551,2]
[361124999,1747288238801,-500.0,0.00010709,2]
[361125001,1747288238811,-304.77,0.00010765,2]
[361125003,1747288238821,-309.29,0.00010798,2]
[361125005,1747288238831,-1852.42,0.00010808,2]
[361125007,1747288238840,-999.19,0.00010864,2]
[361125009,1747288238849,-420.0,0.00010916,2]
[361125011,1747288238859,-166.66,0.00010957,2]
[361125013,1747288238868,-150.0,0.00010957,2]
[361125016,1747288238878,-400.0,0.00010958,2]
[361125018,1747288238887,-400.0,0.00010958,2]
[361125020,1747288238897,-400.0,0.00010958,2]
[361125023,1747288238906,-400.0,0.00010958,2]
[361125025,1747288238915,-400.0,0.00010958,2]
[361125028,1747288238924,-400.0,0.00010958,2]
[361125030,1747288238934,-400.0,0.00010958,2]
[361125032,1747288238944,-180.08047501,0.00010958,2]
[361125034,1747288238953,-400.0,0.00010958,2]
[361125037,1747288238975,-400.0,0.00010958,2]
[361125039,1747288238984,-400.0,0.00010958,2]
[361125041,1747288238993,-400.0,0.00010958,2]
[361125043,1747288239003,-351.60613772,0.00010958,2]
[361125045,1747288239015,-400.0,0.00010958,2]
[361125047,1747288239024,-500.0,0.00010958,2]
[361125049,1747288239033,-400.0,0.00010958,2]
[361125051,1747288239042,-400.0,0.00010958,2]
[361125053,1747288239051,-400.0,0.00010958,2]
[361125055,1747288239061,-400.0,0.00010958,2]
[361125057,1747288239071,-400.0,0.00010958,2]
[361125059,1747288239079,-496.79,0.00010958,2]
[361125060,1747288239089,-400.0,0.00010958,2]
[361125061,1747288239098,-512.16,0.00010958,2]
[361125062,1747288239107,-400.0,0.00010958,2]
[361125063,1747288239116,-400.0,0.00010958,2]
[361125064,1747288239125,-400.0,0.00010958,2]
[361125065,1747288239134,-400.0,0.00010958,2]
[361125066,1747288239143,-400.0,0.00010958,2]
[361125067,1747288239152,-408.44460746,0.00010958,2]
[361125068,1747288239161,-400.0,0.00010958,2]
[361125069,1747288239170,-400.0,0.00010958,2]
[361125070,1747288239180,-469.39,0.00010958,2]
[361125071,1747288239191,-400.0,0.00010958,2]
[361125072,1747288239201,-400.0,0.00010958,2]
[361125073,1747288239211,-419.8,0.00010958,2]
[361125074,1747288239221,-250.22735386,0.00010958,2]
[361125075,1747288239230,-400.0,0.00010958,2]
[361125076,1747288239240,-400.0,0.00010958,2]
[361125077,1747288239249,-400.0,0.00010958,2]
[361125078,1747288239259,-400.0,0.00010958,2]
[361125079,1747288239268,-492.31,0.00010958,2]
[361125080,1747288239278,-400.0,0.00010958,2]
[361125081,1747288239287,-400.0,0.00010958,2]
[361125082,1747288239297,-400.0,0.00010958,2]
[361125083,1747288239306,-400.0,0.00010958,2]
[361125084,1747288239315,-336.19303034,0.00010958,2]
[361125085,1747288239324,-450.84651703,0.00010958,2]
[361125086,1747288239333,-272.85231045,0.00010958,2]
[361125087,1747288239343,-400.0,0.00010958,2]
[361125088,1747288239352,-400.0,0.00010958,2]
[361125089,1747288239362,-400.0,0.00010958,2]
[361125090,1747288239374,-400.0,0.00010958,2]
[361125091,1747288239383,-400.0,0.00010958,2]
[361125092,1747288239393,-400.0,0.00010958,2]
[361125093,1747288239657,-400.0,0.00010958,2]
[361125094,1747288239671,-400.0,0.00010958,2]
[361125095,1747288239681,-400.0,0.00010958,2]
[361125096,1747288239691,-400.0,0.00010958,2]
[361125097,1747288239700,-400.0,0.00010958,2]
[361125098,1747288239709,-400.0,0.00010958,2]
[361125099,1747288239719,-400.0,0.00010958,2]
[361125100,1747288239729,-228.10197301,0.00010958,2]
[361125101,1747288239739,-486.07,0.00010958,2]
[361125102,1747288239748,-400.0,0.00010958,2]
[361125103,1747288239757,-1092.47,0.00010958,2]
[361125104,1747288239767,-634.25,0.00010958,2]
[361125105,1747288239776,-612.47,0.00010958,2]
[361125106,1747288239784,-400.0,0.00010958,2]
[361125107,1747288239795,-483.98,0.00010958,2]
[361125108,1747288239804,-162.29066391,0.00010958,2]
[361125109,1747288239813,-400.0,0.00010958,2]
[361125110,1747288239822,-426.67,0.00010958,2]
[361125111,1747288239832,-400.0,0.00010958,2]
[361125112,1747288239841,-400.0,0.00010958,2]
[361125113,1747288239851,-400.0,0.00010958,2]
[361125114,1747288239860,-710.45,0.00010958,2]
[361125115,1747288239870,-587.46,0.00010958,2]
[361125116,1747288239880,-400.0,0.00010958,2]
[361125117,1747288239889,-400.0,0.00010958,2]
[361125118,1747288239899,-400.0,0.00010958,2]
[361125119,1747288239908,-400.0,0.00010958,2]
[361125120,1747288239919,-421.55,0.00010958,2]
[361125121,1747288239928,-400.0,0.00010958,2]
[361125122,1747288239938,-508.0,0.00010958,2]
[361125123,1747288239948,-400.0,0.00010958,2]
[361125124,1747288239958,-400.0,0.00010958,2]
[361125125,1747288239967,-203.99924899,0.00010958,2]
[361125126,1747288239980,-430.01432511,0.00010958,2]
[361125127,1747288239991,-400.0,0.00010958,2]
[361125128,1747288240001,-400.0,0.00010958,2]
[361125129,1747288240013,-400.0,0.00010958,2]
[361125130,1747288240023,-400.0,0.00010958,2]
[361125131,1747288240033,-721.83,0.00010958,2]
[361125132,1747288240042,-404.63,0.00010958,2]
[361125133,1747288240051,-407.35,0.00010958,2]
[361125134,1747288240060,-180.16130853,0.00010958,2]
[361125135,1747288240070,-400.0,0.00010958,2]
[361125136,1747288240079,-400.0,0.00010958,2]
[361125137,1747288240089,-400.0,0.00010958,2]
[361125138,1747288240098,-483.72642078,0.00010958,2]
[361125139,1747288240107,-1271.78,0.00010958,2]
[361125140,1747288240117,-402.29670994,0.00010958,2]
[361125141,1747288240126,-402.23,0.00010958,2]
[361125142,1747288240136,-716.66,0.00010958,2]
[361125143,1747288240145,-526.81,0.00010958,2]
[361125144,1747288240154,-400.0,0.00010958,2]
[361125145,1747288240163,-901.42,0.00010958,2]
[361125146,1747288240172,-400.0,0.00010958,2]
[361125147,1747288240182,-400.0,0.00010958,2]
[361125148,1747288240192,-471.17,0.00010958,2]
[361125149,1747288240201,-1255.82,0.00010958,2]
[361125150,1747288240210,-488.86,0.00010958,2]
[361125151,1747288240219,-400.0,0.00010958,2]
[361125152,1747288240228,-400.0,0.00010958,2]
[361125153,1747288240238,-400.0,0.00010958,2]
[361125154,1747288240247,-302.30557581,0.00010958,2]
[361125155,1747288240256,-400.0,0.00010958,2]
[361125156,1747288240265,-400.0,0.00010958,2]
[361125157,1747288240275,-1340.59,0.00010958,2]
[361125158,1747288240284,-885.33,0.00010958,2]
[361125159,1747288240294,-400.0,0.00010958,2]
[361125161,1747288240303,-400.0,0.00010958,2]
[361125163,1747288240313,-400.0,0.00010958,2]
[361125165,1747288240322,-426.08418872,0.00010958,2]
[361125166,1747288240331,-620.93,0.00010958,2]
[361125168,1747288240341,-400.0,0.00010958,2]
[361125170,1747288240351,-407.55,0.00010958,2]
[361125173,1747288240362,-400.0,0.00010958,2]
[361125175,1747288240372,-400.0,0.00010958,2]
[361125180,1747288240381,-514.67,0.00010958,2]
[361125182,1747288240391,-400.0,0.00010958,2]
[361125185,1747288240401,-494.92,0.00010958,2]
[361125188,1747288240411,-400.0,0.00010958,2]
[361125190,1747288240420,-400.0,0.00010958,2]
[361125193,1747288240431,-5724.9396137,0.00011131,2]
[361125196,1747288240440,-5000.0,0.00011132,2]
[361125197,1747288240451,-206.20502254,0.00011208,2]
[361125198,1747288240460,-719.52358209,0.00011208,2]
[361125199,1747288240469,-155.0,0.00011208,2]
[361125200,1747288240479,-207.4,0.00011208,2]
[361125201,1747288240492,-400.0,0.00011231,2]
[361125203,1747288240502,-446.71,0.00011231,2]
[361125204,1747288240512,-400.0,0.00011231,2]
[361125205,1747288240522,-582.66,0.00011231,2]
[361125206,1747288240532,-400.0,0.00011231,2]
[361125207,1747288240542,-400.0,0.00011231,2]
[361125208,1747288240551,-400.0,0.00011231,2]
[361125209,1747288240561,-406.87,0.00011231,2]
[361125210,1747288240570,-500.98,0.00011231,2]
[361125211,1747288240579,-400.0,0.00011231,2]
[361125212,1747288240590,-400.0,0.00011231,2]
[361125213,1747288240601,-400.51816208,0.00011231,2]
[361125214,1747288240611,-400.0,0.00011231,2]
[361125215,1747288240621,-400.0,0.00011231,2]
[361125216,1747288240630,-400.0,0.00011231,2]
[361125217,1747288240640,-502.64,0.00011231,2]
[361125218,1747288240651,-400.0,0.00011231,2]
[361125219,1747288240660,-400.0,0.00011231,2]
[361125220,1747288240670,-400.0,0.00011231,2]
[361125221,1747288240680,-400.0,0.00011231,2]
[361125222,1747288240691,-400.0,0.00011231,2]
[361125223,1747288240700,-467.535839,0.00011231,2]
[361125224,1747288240711,-979.28,0.00011231,2]
[361125225,1747288240721,-654.75,0.00011231,2]
[361125226,1747288240731,-494.71218153,0.00011231,2]
[361125227,1747288240742,-400.0,0.00011231,2]
[361125228,1747288240753,-400.0,0.00011231,2]
[361125229,1747288240765,-400.0,0.00011231,2]
[361125230,1747288240775,-400.0,0.00011231,2]
[361125231,1747288240786,-400.0,0.00011231,2]
[361125232,1747288240798,-400.0,0.00011231,2]
[361125233,1747288240808,-400.0,0.00011231,2]
[361125234,1747288240817,-400.0,0.00011231,2]
[361125235,1747288240827,-400.0,0.00011231,2]
[361125236,1747288240837,-400.0,0.00011231,2]
[361125237,1747288240848,-400.0,0.00011231,2]
[361125238,1747288240857,-400.0,0.00011231,2]
[361125239,1747288240868,-400.0,0.00011231,2]
[361125240,1747288240877,-400.0,0.00011231,2]
[361125241,1747288240887,-400.0,0.00011231,2]
[361125242,1747288240896,-400.0,0.00011231,2]
[361125243,1747288240906,-400.0,0.00011231,2]
[361125244,1747288240915,-400.0,0.00011231,2]
[361125245,1747288240927,-400.0,0.00011231,2]
[361125246,1747288240935,-400.0,0.00011231,2]
[361125247,1747288240945,-400.0,0.00011231,2]
[361125248,1747288240955,-400.0,0.00011231,2]
[361125249,1747288240966,-400.0,0.00011231,2]
[361125250,1747288240980,-400.0,0.00011231,2]
[361125251,1747288240991,-400.0,0.00011231,2]
[361125252,1747288241003,-400.0,0.00011231,2]
[361125253,1747288241012,-388.45233374,0.00011231,2]
[361125254,1747288241024,-400.0,0.00011231,2]
[361125255,1747288241034,-400.0,0.00011231,2]
[361125257,1747288241044,-789.09,0.00011231,2]
[361125259,1747288241055,-400.0,0.00011231,2]
[361125260,1747288241065,-400.0,0.00011231,2]
[361125261,1747288241075,-592.61,0.00011231,2]
[361125262,1747288241086,-400.0,0.00011231,2]
[361125263,1747288241096,-400.0,0.00011231,2]
[361125264,1747288241105,-400.0,0.00011231,2]
[361125265,1747288241114,-1719.32,0.00011231,2]
[361125266,1747288241123,-1015.47,0.00011231,2]
[361125267,1747288241133,-627.58,0.00011231,2]
[361125268,1747288241142,-931.27,0.00011231,2]
[361125269,1747288241151,-511.6,0.00011231,2]
[361125270,1747288241161,-1438.17,0.00011231,2]
[361125271,1747288241170,-400.0,0.00011231,2]
[361125272,1747288241180,-400.0,0.00011231,2]
[361125274,1747288241189,-400.0,0.00011231,2]
[361125275,1747288241200,-400.0,0.00011231,2]
[361125276,1747288241210,-519.27,0.00011231,2]
[361125277,1747288241219,-3314.17,0.00011231,2]
[361125278,1747288241229,-641.51,0.00011231,2]
[361125279,1747288241239,-400.0,0.00011231,2]
[361125280,1747288241250,-400.0,0.00011231,2]
[361125281,1747288241260,-1200.22,0.00011231,2]
[361125282,1747288241269,-400.0,0.00011231,2]
[361125283,1747288241279,-400.0,0.00011231,2]
[361125284,1747288241289,-480.07,0.00011231,2]
[361125285,1747288241299,-1045.81,0.00011231,2]
[361125286,1747288241308,-400.0,0.00011231,2]
[361125287,1747288241318,-400.0,0.00011231,2]
[361125288,1747288241327,-400.0,0.00011231,2]
[361125289,1747288241337,-643.56,0.00011231,2]
[361125290,1747288241347,-448.95,0.00011231,2]
[361125291,1747288241357,-400.0,0.00011231,2]
[361125292,1747288241367,-643.49,0.00011231,2]
[361125293,1747288241378,-454.990713,0.00011231,2]
[361125294,1747288241388,-400.0,0.00011231,2]
[361125295,1747288241398,-601.74,0.00011231,2]
[361125296,1747288241408,-743.64,0.00011231,2]
[361125297,1747288241418,-400.0,0.00011231,2]
[361125298,1747288241427,-400.0,0.00011231,2]
[361125299,1747288241435,-859.95,0.00011231,2]
[361125300,1747288241447,-400.0,0.00011231,2]
[361125301,1747288241457,-400.0,0.00011231,2]
[361125302,1747288241466,-3779.66,0.00011231,2]
[361125303,1747288241475,-400.0,0.00011231,2]
[361125304,1747288241485,-512.69,0.00011231,2]
[361125305,1747288241493,-400.0,0.00011231,2]
[361125306,1747288241502,-402.07,0.00011231,2]
[361125307,1747288241512,-400.0,0.00011231,2]
[361125308,1747288241521,-3518.33,0.00011231,2]
[361125309,1747288241530,-674.22,0.00011231,2]
[361125310,1747288241539,-1264.97,0.00011231,2]
[361125311,1747288241548,-400.0,0.00011231,2]
[361125312,1747288241558,-151.0,0.00011231,2]
[361125313,1747288241567,-400.0,0.00011231,2]
[361125314,1747288241577,-400.0,0.00011231,2]
[361125315,1747288241587,-437.4362502,0.00011231,2]
[361125316,1747288241597,-151.0,0.00011231,2]
[361125317,1747288241609,-410.47,0.00011231,2]
[361125318,1747288241619,-400.0,0.00011231,2]
[361125319,1747288241629,-151.0,0.00011231,2]
[361125320,1747288241639,-1638.47,0.00011231,2]
[361125321,1747288241648,-1000.0,0.00011231,2]
[361125322,1747288241657,-400.0,0.00011231,2]
[361125323,1747288241667,-505.62,0.00011231,2]
[361125324,1747288241677,-400.0,0.00011231,2]
[361125325,1747288241686,-400.0,0.00011231,2]
[361125326,1747288241696,-400.0,0.00011231,2]
[361125327,1747288241705,-400.0,0.00011231,2]
[361125328,1747288241714,-400.0,0.00011231,2]
[361125329,1747288241724,-400.0,0.00011231,2]
[361125330,1747288241734,-2304.46,0.00011231,2]
[361125331,1747288241743,-1099.18,0.00011231,2]
[361125332,1747288241753,-818.1,0.00011231,2]
[361125333,1747288241762,-400.0,0.00011231,2]
[361125334,1747288241771,-1809.42,0.00011231,2]
[361125335,1747288241781,-2086.85,0.00011231,2]
[361125336,1747288241792,-400.0,0.00011231,2]
[361125337,1747288241802,-400.0,0.00011231,2]
[361125338,1747288241811,-422.27,0.00011231,2]
[361125339,1747288241821,-400.0,0.00011231,2]
[361125340,1747288241831,-1733.03,0.00011231,2]
[361125341,1747288241840,-534.53,0.00011231,2]
[361125342,1747288241848,-400.0,0.00011231,2]
[361125343,1747288241857,-654.99,0.00011231,2]
[361125344,1747288241865,-2280.86,0.00011231,2]
[361125345,1747288241873,-767.13,0.00011231,2]
[361125346,1747288241882,-400.0,0.00011231,2]
[361125347,1747288241891,-424.9,0.00011231,2]
[361125348,1747288241900,-4320.37,0.00011231,2]
[361125349,1747288241909,-400.0,0.00011231,2]
[361125350,1747288241917,-400.0,0.00011231,2]
[361125351,1747288241925,-13859.15,0.00011231,2]
[361125352,1747288241934,-2511.77,0.00011231,2]
[361125353,1747288241944,-400.0,0.00011231,2]
[361125354,1747288241953,-827.12,0.00011231,2]
[361125355,1747288241963,-406.34,0.00011231,2]
[361125356,1747288241972,-1936.09,0.00011231,2]
[361125357,1747288241984,-172.711832,0.00011231,2]
[361125358,1747288241993,-716.47,0.00011231,2]
[361125359,1747288242002,-172.711832,0.00011231,2]
[361125360,1747288242011,-400.0,0.00011231,2]
[361125361,1747288242020,-178.73517348,0.00011231,2]
[361125362,1747288242030,-4458.63,0.00011231,2]
[361125363,1747288242040,-400.0,0.00011231,2]
[361125364,1747288242049,-400.0,0.00011231,2]
[361125365,1747288242058,-400.0,0.00011231,2]
[361125366,1747288242067,-400.0,0.00011231,2]
[361125367,1747288242076,-400.0,0.00011231,2]
[361125368,1747288242086,-400.0,0.00011231,2]
[361125369,1747288242096,-400.0,0.00011231,2]
[361125370,1747288242105,-400.0,0.00011231,2]
[361125371,1747288242115,-7709.86,0.00011231,2]
[361125372,1747288242124,-400.0,0.00011231,2]
[361125373,1747288242134,-400.0,0.00011231,2]
[361125374,1747288242143,-400.0,0.00011231,2]
[361125375,1747288242152,-400.0,0.00011231,2]
[361125376,1747288242162,-400.0,0.00011231,2]
[361125377,1747288242171,-633.36,0.00011231,2]
[361125378,1747288242180,-336.7399293,0.00011231,2]
[361125379,1747288242189,-1834.17,0.00011231,2]
[361125380,1747288242199,-423.66,0.00011231,2]
[361125381,1747288242209,-151.0,0.00011232,2]
[361125382,1747288242218,-400.0,0.00011232,2]
[361125383,1747288242227,-151.0,0.00011232,2]
[361125384,1747288242237,-400.0,0.00011232,2]
[361125385,1747288242246,-400.0,0.00011232,2]
[361125386,1747288242257,-400.0,0.00011232,2]
[361125387,1747288242266,-400.0,0.00011232,2]
[361125388,1747288242275,-400.0,0.00011232,2]
[361125389,1747288242284,-400.0,0.00011232,2]
[361125390,1747288242293,-400.0,0.00011232,2]
[361125391,1747288242303,-403.50217301,0.00011232,2]
[361125392,1747288242312,-400.0,0.00011232,2]
[361125393,1747288242321,-285.21450814,0.00011232,2]
[361125394,1747288242330,-400.0,0.00011232,2]
[361125395,1747288242339,-400.0,0.00011232,2]
[361125396,1747288242349,-151.0,0.00011232,2]
[361125397,1747288242359,-151.0,0.00011232,2]
[361125398,1747288242368,-400.0,0.00011232,2]
[361125399,1747288242377,-400.0,0.00011232,2]
[361125400,1747288242387,-400.0,0.00011232,2]
[361125401,1747288242396,-226.33973368,0.00011232,2]
[361125402,1747288242406,-496.79,0.00011232,2]
[361125403,1747288242415,-400.0,0.00011232,2]
[361125404,1747288242425,-512.16,0.00011232,2]
[361125405,1747288242434,-282.03949869,0.00011232,2]
[361125406,1747288242444,-400.0,0.00011232,2]
[361125407,1747288242454,-400.0,0.00011232,2]
[361125408,1747288242464,-400.0,0.00011232,2]
[361125409,1747288242474,-400.0,0.00011232,2]
[361125410,1747288242484,-400.0,0.00011232,2]
[361125411,1747288242494,-400.0,0.00011232,2]
[361125412,1747288242504,-469.39,0.00011232,2]
[361125413,1747288242514,-400.0,0.00011232,2]
[361125414,1747288242525,-340.75255438,0.00011232,2]
[361125415,1747288242535,-419.8,0.00011232,2]
[361125416,1747288242545,-154.846676,0.00011232,2]
[361125417,1747288242555,-400.0,0.00011232,2]
[361125418,1747288242565,-400.0,0.00011232,2]
[361125419,1747288242574,-400.0,0.00011232,2]
[361125420,1747288242584,-492.31,0.00011232,2]
[361125421,1747288242594,-400.0,0.00011232,2]
[361125422,1747288242604,-400.0,0.00011232,2]
[361125423,1747288242614,-430.53512548,0.00011232,2]
[361125424,1747288242624,-400.0,0.00011232,2]
[361125425,1747288242633,-400.0,0.00011232,2]
[361125426,1747288242643,-400.0,0.00011232,2]
[361125427,1747288242652,-400.0,0.00011232,2]
[361125428,1747288242661,-400.0,0.00011232,2]
[361125429,1747288242671,-400.0,0.00011232,2]
[361125430,1747288242682,-400.0,0.00011232,2]
[361125431,1747288242692,-400.0,0.00011232,2]
[361125432,1747288242701,-400.0,0.00011232,2]
[361125433,1747288242711,-449.84868445,0.00011232,2]
[361125434,1747288242721,-400.0,0.00011232,2]
[361125435,1747288242731,-400.0,0.00011232,2]
[361125436,1747288242740,-400.0,0.00011232,2]
[361125437,1747288242751,-486.07,0.00011232,2]
[361125438,1747288242760,-443.84139105,0.00011232,2]
[361125439,1747288242770,-1092.47,0.00011232,2]
[361125440,1747288242781,-151.0,0.00011232,2]
[361125441,1747288242790,-634.25,0.00011232,2]
[361125442,1747288242799,-612.47,0.00011232,2]
[361125443,1747288242809,-400.0,0.00011232,2]
[361125444,1747288242818,-483.98,0.00011232,2]
[361125445,1747288242827,-151.0,0.00011232,2]
[361125446,1747288242836,-582.557139,0.00011232,2]
[361125447,1747288242845,-400.0,0.00011232,2]
[361125448,1747288242856,-426.67,0.00011232,2]
[361125449,1747288242865,-151.0,0.00011232,2]
[361125450,1747288242874,-510.55488899,0.00011232,2]
[361125451,1747288242884,-400.0,0.00011232,2]
[361125452,1747288242893,-582.557139,0.00011232,2]
[361125453,1747288242903,-400.0,0.00011232,2]
[361125454,1747288242913,-710.45,0.00011232,2]
[361125455,1747288242923,-587.46,0.00011232,2]
[361125456,1747288242941,-400.0,0.00011232,2]
[361125457,1747288242951,-400.0,0.00011232,2]
[361125458,1747288242961,-400.0,0.00011232,2]
[361125459,1747288242971,-239.90361408,0.00011232,2]
[361125460,1747288242984,-421.55,0.00011232,2]
[361125461,1747288242994,-400.0,0.00011232,2]
[361125462,1747288243003,-508.0,0.00011232,2]
[361125463,1747288243014,-400.0,0.00011232,2]
[361125464,1747288243026,-400.0,0.00011232,2]
[361125465,1747288243035,-400.0,0.00011232,2]
[361125466,1747288243045,-400.0,0.00011232,2]
[361125467,1747288243056,-400.0,0.00011232,2]
[361125468,1747288243066,-400.0,0.00011232,2]
[361125469,1747288243076,-721.83,0.00011232,2]
[361125470,1747288243085,-404.63,0.00011232,2]
[361125471,1747288243095,-407.35,0.00011232,2]
[361125472,1747288243104,-151.0,0.00011232,2]
[361125473,1747288243114,-400.0,0.00011232,2]
[361125474,1747288243123,-400.0,0.00011232,2]
[361125475,1747288243133,-400.0,0.00011232,2]
[361125476,1747288243142,-1271.78,0.00011232,2]
[361125477,1747288243151,-257.333166,0.00011232,2]
[361125478,1747288243160,-402.23,0.00011232,2]
[361125479,1747288243171,-716.66,0.00011232,2]
[361125480,1747288243181,-257.333166,0.00011232,2]
[361125482,1747288243191,-526.81,0.00011232,2]
[361125483,1747288243201,-300.68491701,0.00011232,2]
[361125485,1747288243211,-901.42,0.00011232,2]
[361125487,1747288243221,-400.0,0.00011232,2]
[361125489,1747288243230,-400.0,0.00011232,2]
[361125490,1747288243240,-471.17,0.00011232,2]
[361125491,1747288243249,-1255.82,0.00011232,2]
[361125492,1747288243259,-488.86,0.00011232,2]
[361125493,1747288243269,-400.0,0.00011232,2]
[361125494,1747288243279,-400.0,0.00011232,2]
[361125495,1747288243288,-151.0,0.00011232,2]
[361125496,1747288243297,-400.0,0.00011232,2]
[361125497,1747288243307,-539.13037672,0.00011232,2]
[361125498,1747288243317,-1340.59,0.00011232,2]
[361125499,1747288243327,-885.33,0.00011232,2]
[361125500,1747288243337,-400.0,0.00011232,2]
[361125501,1747288243346,-400.0,0.00011232,2]
[361125502,1747288243355,-400.0,0.00011232,2]
[361125503,1747288243365,-620.93,0.00011232,2]
[361125504,1747288243375,-400.0,0.00011232,2]
[361125505,1747288243386,-407.55,0.00011232,2]
[361125506,1747288243398,-183.24136497,0.00011232,2]
[361125507,1747288243407,-400.0,0.00011232,2]
[361125508,1747288243416,-514.67,0.00011232,2]
[361125509,1747288243426,-151.0,0.00011232,2]
[361125510,1747288243437,-400.0,0.00011232,2]
[361125511,1747288243448,-494.92,0.00011232,2]
[361125512,1747288243457,-312.3736384,0.00011232,2]
[361125513,1747288243467,-403.84232242,0.00011232,2]
[361125514,1747288243476,-454.990713,0.00011232,2]
[361125515,1747288243486,-151.0,0.00011232,2]
[361125516,1747288243496,-151.0,0.00011232,2]